[Event "Turkish Super League 2019"]
[Site "Konya"]
[Date "2019.07.25"]
[Round "9"]
[White "Ertan, Can"]
[Black "Arat, Ufuk Sezen"]
[Result "0-1"]
[ECO "C42"]
[WhiteElo "2396"]
[BlackElo "2376"]
[Annotator "NA"]
[PlyCount "100"]
[EventDate "2019.07.17"]
[EventType "team-tourn"]
[EventCountry "TUR"]
[SourceTitle "playchess.com"]
[Source "ChessBase"]
[SourceQuality "1"]
[TimeControl "40/5400+30:1800+30"]

1. e4 e5 2. Nf3 Nf6 3. Nxe5 d6 4. Nf3 Nxe4 5. d4 d5 6. Bd3 Bf5 7. O-O Be7 8. Re1 Nc6 9. c4 Nb4 10. Bf1 O-O {C42: Petroff Defence: 3 Nxe5 and unusual White 3rd moves} 11. a3 Nc6 12. cxd5 Qxd5 13. Nc3 Nxc3 14. bxc3 Bf6 15. Bf4 {[%emt 0:07:30]} Rac8 {[%emt 0:51:30]} 16. Ne5 {[%emt 0:03:30]} (16. h3 Bg6 17. g4 h6 18. Bg2 {1-0 (40) So,W (2822)-Nilsen,J (2414) chess.com INT 2017}) 16... Nxe5 {[%emt 0:03:30]} 17. Bxe5 {[%emt 0:01:30]} Qc6 {[%emt 0:04:30]} 18. d5 $146 {[%emt 0:03:30]} ({Predecessor:} 18. Qb3 Be6 19. c4 Bxe5 20. Rxe5 Qd6 21. Qe3 {½-½ (21) Rodriguez Cespedes,A (2360)-Garcia Gonzales,G Cuba 1983}) 18... Qb6 {[%emt 0:02:30]} 19. Qf3 {[%emt 0:01:30]} Bxe5 {[%emt 0:03:30]} 20. Rxe5 {[%emt 0:00:30]} Bg6 {[%emt 0:01:30]} 21. Rae1 {[%emt 0:08:30]} Qc5 {[%emt 0:02:30]} 22. c4 {[%emt 0:10:30]} b6 {[%emt 0:07:30]} 23. h4 {[%emt 0:00:30]} h5 {[%emt 0:08:49]} 24. Re7 {[%emt 0:06:30]} a5 {[%emt 0:04:00]} 25. Qc3 {[%emt 0:04:30]} c6 {[%emt 0:01:08]} 26. R1e6 {[%emt 0:09:30]} Bh7 {[%emt 0:02:23]} 27. d6 {[%emt 0:23:30]} Bf5 {[%emt 0:00:56]} 28. Re5 {[%emt 0:00:30]} Qxd6 {[%emt 0:00:30]} 29. Rb7 {[%emt 0:00:00]} Bg6 {[%emt 0:04:34]} 30. Rxb6 {[%emt 0:00:00]} Qd8 {[%emt 0:00:00]} 31. Qxa5 {[%emt 0:01:30]} Qxh4 {[%emt 0:00:12]} 32. Qc5 {[%emt 0:00:30]} Qf4 {[%emt 0:01:24]} 33. Re3 {[%emt 0:02:30]} Qf5 {[%emt 0:01:43]} 34. Qe7 {[%emt 0:01:07]} Qc2 {[%emt 0:01:12]} 35. c5 {[%emt 0:03:50]} Qc1 {[%emt 0:00:41]} 36. Re1 {[%emt 0:01:31]} Qc3 {[%emt 0:00:02]} 37. a4 {[%emt 0:00:00]} Qa3 {[%emt 0:00:28]} 38. Ra6 {[%emt 0:01:04]} Ra8 {[%emt 0:00:20]} 39. Ra7 {[%emt 0:01:56]} Qb4 {[%emt 0:01:32]} 40. Re3 {[%emt 0:00:00]} Qb8 {[%emt 0:00:00]} 41. Rc7 {[%emt 0:06:32]} Rc8 {[%emt 0:14:50]} 42. Rb7 {[%emt 0:00:30]} Qf4 {[%emt 0:01:13]} 43. Rf3 {[%emt 0:00:00]} Qg4 {[%emt 0:04:22]} 44. Rg3 $11 {[%emt 0:08:00]} Qd4 {[%emt 0:00:55]} 45. Bc4 {[%emt 0:08:30]} Qxc4 {[%emt 0:02:28]} 46. Rxg6 {[%emt 0:00:30]} Qc1+ {[%emt 0:00:06]} 47. Kh2 {[%emt 0:01:30]} Qf4+ {[%emt 0:00:05]} 48. g3 {[%emt 0:01:30]} Qxf2+ {[%emt 0:00:33]} 49. Kh1 {[%emt 0:00:30]} Qf3+ {[%emt 0:00:00]} 50. Kh2 {[%emt 0:00:30]} Re8 {[%emt 0:00:27]} 0-1

[Event "Turkish Super League 2019"]
[Site "Konya"]
[Date "2019.07.25"]
[Round "9"]
[White "Osmak, Iulija"]
[Black "Atalik, Ekaterina"]
[Result "1/2-1/2"]
[ECO "A47"]
[WhiteElo "2395"]
[BlackElo "2459"]
[Annotator "ChessBase"]
[PlyCount "92"]
[EventDate "2019.07.17"]
[EventType "team-tourn"]
[EventCountry "TUR"]
[SourceTitle "playchess.com"]
[Source "ChessBase"]
[SourceQuality "1"]
[TimeControl "40/5400+30:1800+30"]

1. d4 Nf6 2. Bf4 c5 3. e3 e6 4. c3 b6 5. Nf3 Bb7 6. Bd3 Be7 7. h3 O-O 8. Nbd2 cxd4 9. exd4 Nc6 10. O-O h6 11. a4 Nd5 12. Bh2 d6 13. Re1 Re8 14. Nc4 Bf8 {[%emt 0:24:00]} 15. Nfd2 {[%emt 0:32:30]} Nf6 {[%emt 0:09:30]} 16. a5 {[%emt 0:10:30]} Nxa5 {[%emt 0:06:30]} 17. Nxa5 {[%emt 0:00:30]} bxa5 {[%emt 0:00:30]} 18. Nb3 {[%emt 0:09:30]} Rb8 {[%emt 0:02:30]} 19. Nxa5 {[%emt 0:01:30]} Ba8 {[%emt 0:00:30]} 20. Qe2 {[%emt 0:03:30]} e5 {[%emt 0:08:30]} 21. dxe5 {[%emt 0:11:30]} dxe5 {[%emt 0:01:30]} 22. Nc4 {[%emt 0:00:30]} Qd5 {[%emt 0:04:30]} 23. Qf1 {[%emt 0:01:30]} Rbd8 {[%emt 0:19:30]} 24. Rad1 {[%emt 0:04:30]} e4 {[%emt 0:04:34]} 25. Bxe4 {[%emt 0:01:30]} Nxe4 {[%emt 0:01:38]} 26. Rxd5 {[%emt 0:00:30]} Bxd5 {[%emt 0:00:13]} 27. Bf4 {[%emt 0:08:52]} Rc8 {[%emt 0:06:11]} 28. Nd2 {[%emt 0:04:20]} Re6 {[%emt 0:03:12]} 29. Kh1 {[%emt 0:11:05]} Nxd2 {[%emt 0:03:25]} 30. Bxd2 {[%emt 0:00:02]} Bc4 {[%emt 0:00:25]} 31. Qg1 {[%emt 0:00:03]} Rb6 {[%emt 0:01:36]} 32. b4 {[%emt 0:01:24]} Rd6 {[%emt 0:00:29]} 33. Be3 {[%emt 0:00:55]} Rd3 {[%emt 0:00:21]} 34. Rc1 {[%emt 0:01:41]} Bb3 {[%emt 0:00:48]} 35. Qe1 {[%emt 0:00:28]} Bxb4 {[%emt 0:03:06]} 36. cxb4 {[%emt 0:00:32]} Rxc1 {[%emt 0:00:30]} 37. Qxc1 {[%emt 0:00:30]} Rd1+ {[%emt 0:00:30]} 38. Qxd1 {[%emt 0:00:30]} Bxd1 {[%emt 0:00:30]} 39. Bxa7 {[%emt 0:00:00]} Be2 {[%emt 0:00:00]} 40. f3 {[%emt 0:00:00]} f5 {[%emt 0:00:06]} 41. Kg1 {[%emt 0:00:08]} Kf7 {[%emt 0:00:26]} 42. Kf2 {[%emt 0:00:30]} Bb5 {[%emt 0:00:00]} 43. h4 {[%emt 0:01:30]} h5 {[%emt 0:03:00]} 44. Ke3 {[%emt 0:00:00]} Ke6 {[%emt 0:00:30]} 45. Kf4 {[%emt 0:02:00]} g6 {[%emt 0:00:30]} 46. Bb8 {[%emt 0:01:30]} Bf1 {[%emt 0:00:30]} 1/2-1/2

[Event "Turkish Super League 2019"]
[Site "Konya"]
[Date "2019.07.25"]
[Round "9"]
[White "Can, Isik"]
[Black "Ozen, Deniz"]
[Result "0-1"]
[ECO "C43"]
[WhiteElo "2374"]
[BlackElo "2430"]
[Annotator "ChessBase"]
[PlyCount "80"]
[EventDate "2019.07.17"]
[EventType "team-tourn"]
[EventCountry "TUR"]
[SourceTitle "playchess.com"]
[Source "ChessBase"]
[SourceQuality "1"]
[TimeControl "40/5400+30:1800+30"]

1. e4 e5 2. Nf3 Nf6 3. d4 Nxe4 4. dxe5 d5 5. Nbd2 Nxd2 6. Qxd2 Be7 7. Qf4 Qd7 8. h3 Qf5 9. Bd3 Qxf4 10. Bxf4 {[%emt 0:27:00]} c5 {[%emt 0:24:00]} 11. O-O-O {[%emt 0:05:30]} Nc6 {[%emt 0:00:30]} 12. g4 {[%emt 0:07:30]} Be6 {[%emt 0:01:30]} 13. Bf5 {[%emt 0:05:30]} g6 {[%emt 0:05:30]} 14. Bd3 {[%emt 0:04:30]} d4 {[%emt 0:03:30]} 15. Ng5 {[%emt 0:06:30]} Nxe5 {[%emt 0:14:30]} 16. Bb5+ {[%emt 0:13:30]} Bd7 {[%emt 0:04:30]} 17. Bxd7+ {[%emt 0:03:30]} Nxd7 {[%emt 0:08:30]} 18. Rhe1 {[%emt 0:00:30]} Kf8 {[%emt 0:02:30]} 19. c3 {[%emt 0:00:30]} Nb6 {[%emt 0:13:30]} 20. Nf3 {[%emt 0:08:20]} f6 {[%emt 0:02:11]} 21. cxd4 {[%emt 0:01:38]} cxd4 {[%emt 0:00:16]} 22. Nxd4 {[%emt 0:01:41]} Kf7 {[%emt 0:00:52]} 23. Nb5 {[%emt 0:00:53]} a6 {[%emt 0:09:52]} 24. Bd6 {[%emt 0:06:17]} Rhe8 {[%emt 0:01:19]} 25. Bxe7 {[%emt 0:00:51]} axb5 {[%emt 0:00:52]} 26. Ba3 {[%emt 0:05:14]} Rxe1 {[%emt 0:00:30]} 27. Rxe1 {[%emt 0:00:06]} Nd5 {[%emt 0:00:18]} 28. Re4 {[%emt 0:01:23]} g5 {[%emt 0:01:01]} 29. Kc2 {[%emt 0:01:27]} Ra4 {[%emt 0:00:52]} 30. Rxa4 {[%emt 0:01:19]} bxa4 {[%emt 0:00:16]} 31. Bd6 {[%emt 0:00:30]} Ke6 {[%emt 0:00:27]} 32. Bg3 {[%emt 0:00:39]} Nb4+ {[%emt 0:02:34]} 33. Kb1 {[%emt 0:00:55]} f5 {[%emt 0:00:00]} 34. f4 {[%emt 0:00:38]} gxf4 {[%emt 0:03:29]} 35. Bxf4 {[%emt 0:00:08]} fxg4 {[%emt 0:00:51]} 36. hxg4 {[%emt 0:00:04]} Nd3 {[%emt 0:00:00]} 37. Bh6 {[%emt 0:01:18]} Ne5 {[%emt 0:00:00]} 38. g5 {[%emt 0:00:24]} Nf7 {[%emt 0:00:44]} 39. Kc2 {[%emt 0:00:33]} Nxh6 {[%emt 0:01:39]} 40. gxh6 {[%emt 0:00:00]} Ke5 {[%emt 0:00:30]} 0-1

[Event "Turkish Super League 2019"]
[Site "Konya"]
[Date "2019.07.25"]
[Round "9"]
[White "Ozer, Omer Faruk"]
[Black "Tarlabasi, Emirhan"]
[Result "1/2-1/2"]
[ECO "A08"]
[WhiteElo "2369"]
[BlackElo "2352"]
[Annotator "NA"]
[PlyCount "101"]
[EventDate "2019.07.17"]
[EventType "team-tourn"]
[EventCountry "TUR"]
[SourceTitle "playchess.com"]
[Source "ChessBase"]
[SourceQuality "1"]
[TimeControl "40/5400+30:1800+30"]

1. Nf3 d5 2. g3 Nf6 3. Bg2 e6 4. O-O Be7 5. d3 c5 6. c3 Nc6 7. a3 a5 8. a4 O-O 9. Na3 h6 10. Qc2 b6 {[%emt 0:21:00]} 11. e4 {[%emt 0:45:30]} Ba6 {[%emt 0:04:30]} 12. Rd1 {[%emt 0:00:30]} Ra7 {[%emt 0:08:30]} 13. Nb5 {[%emt 0:12:30]} Rd7 {[%emt 0:05:30]} 14. Bf4 {[%emt 0:10:30]} Qc8 {[%emt 0:05:30]} 15. Qe2 {[%emt 0:03:30]} Rfd8 {[%emt 0:04:30]} 16. e5 {[%emt 0:03:30]} Ne8 {[%emt 0:01:30]} 17. h4 {[%emt 0:00:30]} Nc7 {[%emt 0:03:30]} 18. Nxc7 {[%emt 0:02:30]} Qxc7 {[%emt 0:01:30]} 19. g4 {[%emt 0:08:07]} Rb8 {[%emt 0:04:30]} 20. Bh3 {[%emt 0:07:01]} b5 {[%emt 0:07:30]} 21. g5 {[%emt 0:00:51]} hxg5 {[%emt 0:02:30]} 22. hxg5 {[%emt 0:00:01]} g6 {[%emt 0:00:30]} 23. axb5 {[%emt 0:00:05]} Rxb5 {[%emt 0:02:30]} 24. Nh2 {[%emt 0:01:04]} Qd8 {[%emt 0:08:35]} 25. Qd2 {[%emt 0:00:17]} Rdb7 {[%emt 0:00:25]} 26. Ra2 {[%emt 0:00:10]} Qb8 {[%emt 0:01:42]} 27. Ng4 {[%emt 0:02:45]} Rxb2 {[%emt 0:02:19]} 28. Rxb2 {[%emt 0:00:03]} Rxb2 {[%emt 0:00:00]} 29. Qe1 {[%emt 0:00:08]} Kg7 {[%emt 0:06:34]} 30. Nf6 {[%emt 0:02:22]} a4 {[%emt 0:01:57]} 31. Kg2 {[%emt 0:00:43]} Qh8 {[%emt 0:04:19]} 32. Bg4 {[%emt 0:01:09]} a3 {[%emt 0:00:00]} 33. Qh1 {[%emt 0:01:17]} Rb8 {[%emt 0:03:11]} 34. Qf1 {[%emt 0:00:41]} Qh4 {[%emt 0:02:05]} 35. Qe2 {[%emt 0:00:04]} Rb2 {[%emt 0:01:26]} 36. Qf3 {[%emt 0:00:16]} a2 {[%emt 0:00:39]} 37. Bg3 {[%emt 0:00:36]} Qh8 {[%emt 0:01:00]} 38. Ra1 {[%emt 0:00:29]} Rb1 {[%emt 0:00:23]} 39. Nh5+ {[%emt 0:01:35]} gxh5 {[%emt 0:00:49]} 40. Bxh5 {[%emt 0:00:00]} Qxh5 {[%emt 0:00:00]} 41. Qxh5 {[%emt 0:00:46]} Rxa1 {[%emt 0:00:36]} 42. Qh6+ {[%emt 0:00:30]} Kg8 {[%emt 0:00:30]} 43. g6 {[%emt 0:00:30]} fxg6 {[%emt 0:05:30]} 44. Qxg6+ {[%emt 0:00:30]} Kh8 {[%emt 0:18:09]} 45. Qh6+ {[%emt 0:21:06]} Kg8 {[%emt 0:00:04]} 46. Qxe6+ {[%emt 0:00:00]} Kg7 {[%emt 0:02:52]} 47. Qg4+ {[%emt 0:00:00]} Kf8 {[%emt 0:02:47]} 48. Qf5+ {[%emt 0:00:02]} Kg7 {[%emt 0:01:52]} 49. Qg4+ {[%emt 0:00:05]} Kf8 {[%emt 0:00:20]} 50. Qf5+ {[%emt 0:00:04]} Kg7 {[%emt 0:00:24]} 51. Qg4+ {[%emt 0:00:36]} 1/2-1/2

[Event "Turkish Super League 2019"]
[Site "Konya"]
[Date "2019.07.25"]
[Round "9"]
[White "Secer, Ata"]
[Black "Ayan, Bengu Sena"]
[Result "1-0"]
[ECO "C07"]
[WhiteElo "2324"]
[BlackElo "1885"]
[Annotator "NA"]
[PlyCount "81"]
[EventDate "2019.07.17"]
[EventType "team-tourn"]
[EventCountry "TUR"]
[SourceTitle "playchess.com"]
[Source "ChessBase"]
[SourceQuality "1"]
[TimeControl "40/5400+30:1800+30"]

1. e4 e6 2. d4 d5 3. Nd2 a6 4. Ngf3 c5 5. c3 Nc6 6. Bd3 Nf6 7. O-O Be7 8. dxc5 Bxc5 9. exd5 Nxd5 10. Ne4 Be7 11. c4 Nf6 12. Qe2 {[%emt 0:14:00]} Qc7 {[%emt 0:37:00]} 13. b3 {[%emt 0:17:30]} Nxe4 {[%emt 0:03:30]} 14. Bxe4 {[%emt 0:01:30]} Bf6 {[%emt 0:01:30]} 15. Bb2 {[%emt 0:02:30]} Bxb2 {[%emt 0:02:30]} 16. Qxb2 {[%emt 0:02:30]} O-O {[%emt 0:00:30]} 17. Rad1 {[%emt 0:00:30]} Re8 {[%emt 0:12:30]} 18. Qa3 {[%emt 0:19:30]} Ne7 {[%emt 0:12:30]} 19. Qd6 {[%emt 0:04:30]} Qxd6 {[%emt 0:03:30]} 20. Rxd6 {[%emt 0:00:30]} f5 {[%emt 0:02:30]} 21. Bd3 {[%emt 0:00:30]} Nc6 {[%emt 0:00:30]} 22. c5 {[%emt 0:00:00]} g6 {[%emt 0:08:39]} 23. Bc4 {[%emt 0:01:00]} Kg7 {[%emt 0:01:06]} 24. Re1 {[%emt 0:00:30]} e5 {[%emt 0:03:58]} 25. Bd5 {[%emt 0:00:30]} Nb4 {[%emt 0:04:08]} 26. Rxe5 {[%emt 0:01:30]} Rxe5 {[%emt 0:00:19]} 27. Nxe5 {[%emt 0:00:00]} Nxd5 {[%emt 0:01:29]} 28. Rxd5 {[%emt 0:00:00]} Be6 {[%emt 0:00:26]} 29. Rd6 {[%emt 0:00:00]} Kf6 {[%emt 0:02:17]} 30. f4 {[%emt 0:00:00]} a5 {[%emt 0:01:41]} 31. c6 {[%emt 0:02:30]} bxc6 {[%emt 0:02:47]} 32. Nxc6 {[%emt 0:00:30]} Kf7 {[%emt 0:01:01]} 33. Nd4 {[%emt 0:04:30]} Bc8 {[%emt 0:00:30]} 34. Rd8 {[%emt 0:00:30]} Kf6 {[%emt 0:00:53]} 35. Nc6 {[%emt 0:02:30]} h6 {[%emt 0:00:28]} 36. a4 {[%emt 0:01:30]} g5 {[%emt 0:00:56]} 37. g3 {[%emt 0:00:30]} gxf4 {[%emt 0:00:54]} 38. gxf4 {[%emt 0:00:30]} h5 {[%emt 0:00:30]} 39. h4 {[%emt 0:00:30]} Kf7 {[%emt 0:00:10]} 40. Kf2 {[%emt 0:00:00]} Kf6 {[%emt 0:00:00]} 41. Ke3 {[%emt 0:00:00]} 1-0

[Event "Turkish Super League 2019"]
[Site "Konya"]
[Date "2019.07.25"]
[Round "9"]
[White "Dordzhieva, Dinara"]
[Black "Maltsevskaya, Aleksandra"]
[Result "1/2-1/2"]
[ECO "E69"]
[WhiteElo "2306"]
[BlackElo "2294"]
[Annotator "NA RC"]
[PlyCount "64"]
[EventDate "2019.07.17"]
[EventType "team-tourn"]
[EventCountry "TUR"]
[SourceTitle "playchess.com"]
[Source "ChessBase"]
[SourceQuality "1"]
[TimeControl "40/5400+30:1800+30"]

1. Nf3 Nf6 2. c4 g6 3. g3 Bg7 4. d4 O-O 5. Bg2 d6 6. Nc3 Nbd7 7. O-O e5 8. e4 c6 9. h3 Qb6 10. Re1 exd4 11. Nxd4 Re8 12. Nc2 Nc5 13. b4 Ncd7 14. Be3 Qd8 15. Nd4 {[%emt 0:35:30]} c5 {[%emt 0:15:30]} 16. bxc5 {[%emt 0:01:30]} Nxc5 {[%emt 0:04:30]} 17. Qc2 {[%emt 0:03:30]} Bd7 {[%emt 0:03:30]} 18. Rad1 {[%emt 0:01:30]} Rc8 {[%emt 0:03:30]} 19. Ndb5 {[%emt 0:05:30]} Ncxe4 {[%emt 0:15:30]} 20. Nxe4 {[%emt 0:05:30]} Nxe4 {[%emt 0:03:30]} 21. Nxa7 {[%emt 0:00:30]} Nc3 {[%emt 0:01:30]} 22. Nxc8 {[%emt 0:17:30]} Nxd1 {[%emt 0:22:30]} 23. Rxd1 {[%emt 0:01:30]} Qxc8 {[%emt 0:00:30]} 24. Qb3 {[%emt 0:00:30]} Be6 {[%emt 0:01:30]} 25. Bxb7 {[%emt 0:06:30]} Qxc4 {[%emt 0:00:30]} 26. Qxc4 {[%emt 0:03:30]} Bxc4 {[%emt 0:00:30]} 27. Bd5 Bxd5 28. Rxd5 {[%emt 0:01:42]} Be5 {[%emt 0:03:00]} 29. a4 {[%emt 0:01:16]} Ra8 {[%emt 0:01:30]} 30. a5 {[%emt 0:00:32]} Bc3 {[%emt 0:00:30]} 31. Bb6 {[%emt 0:01:10]} Kf8 {[%emt 0:00:30]} 32. Rxd6 {[%emt 0:08:29]} Bxa5 {[%emt 0:00:00]} 1/2-1/2

[Event "Turkish Super League 2019"]
[Site "Konya"]
[Date "2019.07.25"]
[Round "9"]
[White "Injac, Teodora"]
[Black "Szczepkowska, Karina"]
[Result "0-1"]
[ECO "A34"]
[WhiteElo "2305"]
[BlackElo "2425"]
[Annotator "ChessBase"]
[PlyCount "82"]
[EventDate "2019.07.17"]
[EventType "team-tourn"]
[EventCountry "TUR"]
[SourceTitle "playchess.com"]
[Source "ChessBase"]
[SourceQuality "1"]
[TimeControl "40/5400+30:1800+30"]

1. Nf3 Nf6 2. c4 c5 3. Nc3 Nc6 4. e3 e5 5. d4 cxd4 6. exd4 e4 7. Ne5 Bb4 8. Be2 Qa5 9. O-O {[%emt 0:17:30]} Nxe5 {[%emt 0:41:30]} 10. dxe5 {[%emt 0:00:30]} Qxe5 {[%emt 0:00:30]} 11. Bd2 {[%emt 0:04:30]} Bc5 {[%emt 0:06:30]} 12. Nb5 {[%emt 0:03:30]} O-O {[%emt 0:01:30]} 13. b4 {[%emt 0:11:30]} Be7 {[%emt 0:00:30]} 14. g3 {[%emt 0:18:30]} b6 {[%emt 0:13:30]} 15. Bf4 {[%emt 0:07:30]} Qf5 {[%emt 0:04:30]} 16. Nc7 {[%emt 0:12:30]} Rb8 {[%emt 0:00:30]} 17. Nd5 {[%emt 0:07:38]} Nxd5 {[%emt 0:00:30]} 18. Bxb8 {[%emt 0:00:47]} Nc3 {[%emt 0:01:30]} 19. Qc2 {[%emt 0:04:33]} Nxe2+ {[%emt 0:02:30]} 20. Qxe2 {[%emt 0:00:02]} Bxb4 {[%emt 0:00:30]} 21. Rfd1 {[%emt 0:06:10]} Qe6 {[%emt 0:02:30]} 22. Rab1 {[%emt 0:01:16]} Bc5 {[%emt 0:00:30]} 23. Bf4 {[%emt 0:00:35]} Ba6 {[%emt 0:01:30]} 24. Rdc1 {[%emt 0:00:23]} Qf5 {[%emt 0:03:52]} 25. Qc2 {[%emt 0:03:16]} d5 {[%emt 0:02:43]} 26. Re1 {[%emt 0:01:34]} Bxc4 {[%emt 0:00:26]} 27. Rbd1 {[%emt 0:00:18]} h5 {[%emt 0:03:18]} 28. h4 {[%emt 0:00:40]} Rc8 {[%emt 0:04:22]} 29. Be3 {[%emt 0:00:44]} Bd3 {[%emt 0:03:39]} 30. Qd2 {[%emt 0:00:30]} d4 {[%emt 0:01:11]} 31. Bf4 {[%emt 0:00:01]} Ba3 {[%emt 0:01:41]} 32. Rc1 {[%emt 0:00:38]} Bxc1 {[%emt 0:01:29]} 33. Rxc1 {[%emt 0:00:02]} Rxc1+ {[%emt 0:02:38]} 34. Qxc1 {[%emt 0:00:01]} Be2 {[%emt 0:00:35]} 35. Kh2 {[%emt 0:01:39]} Bf3 {[%emt 0:00:30]} 36. Qc2 {[%emt 0:00:32]} Qa5 {[%emt 0:01:11]} 37. Qd2 {[%emt 0:00:33]} Qb5 {[%emt 0:01:24]} 38. Qc1 {[%emt 0:00:30]} e3 {[%emt 0:00:41]} 39. Qe1 {[%emt 0:00:27]} Qb2 {[%emt 0:00:26]} 40. Kg1 {[%emt 0:00:00]} Qxa2 {[%emt 0:00:36]} 41. Be5 {[%emt 0:00:41]} Qd2 {[%emt 0:02:18]} 0-1

[Event "Turkish Super League 2019"]
[Site "Konya"]
[Date "2019.07.25"]
[Round "9"]
[White "Sevgi, Volkan"]
[Black "Akdogan, Alperen"]
[Result "1-0"]
[ECO "B03"]
[WhiteElo "2302"]
[BlackElo "2193"]
[Annotator "NA"]
[PlyCount "85"]
[EventDate "2019.07.17"]
[EventType "team-tourn"]
[EventCountry "TUR"]
[SourceTitle "playchess.com"]
[Source "ChessBase"]
[SourceQuality "1"]
[TimeControl "40/5400+30:1800+30"]

1. e4 Nf6 2. e5 Nd5 3. d4 d6 4. c4 Nb6 5. exd6 cxd6 6. Nc3 g6 7. Be3 Bg7 8. Rc1 O-O 9. b3 Bf5 10. g4 Bc8 11. h4 Nc6 12. d5 Ne5 13. Be2 f5 {[%emt 0:25:30]} 14. gxf5 {[%emt 0:25:00]} Bxf5 {[%emt 0:00:30]} 15. f4 {[%emt 0:01:30]} Nf7 {[%emt 0:04:30]} 16. h5 {[%emt 0:04:30]} Qd7 {[%emt 0:14:30]} 17. hxg6 {[%emt 0:11:30]} hxg6 {[%emt 0:04:30]} 18. a4 {[%emt 0:10:30]} e5 {[%emt 0:12:30]} 19. dxe6 {[%emt 0:01:30]} Qxe6 {[%emt 0:00:30]} 20. Bd4 {[%emt 0:00:00]} Nd7 {[%emt 0:05:30]} 21. Bxg7 {[%emt 0:05:00]} Kxg7 {[%emt 0:00:30]} 22. Qd4+ {[%emt 0:00:00]} Qf6 {[%emt 0:00:30]} 23. Nf3 {[%emt 0:00:00]} Rae8 {[%emt 0:04:30]} 24. Kd2 {[%emt 0:07:30]} Rh8 {[%emt 0:12:10]} 25. Rxh8 {[%emt 0:05:30]} Rxh8 {[%emt 0:00:41]} 26. Nd5 {[%emt 0:00:00]} Qxd4+ {[%emt 0:02:00]} 27. Nxd4 {[%emt 0:00:00]} Nc5 {[%emt 0:00:30]} 28. Rg1 {[%emt 0:00:30]} Kf8 {[%emt 0:00:30]} 29. b4 {[%emt 0:00:30]} Ne4+ {[%emt 0:00:30]} 30. Ke3 {[%emt 0:00:30]} Rh3+ {[%emt 0:00:30]} 31. Bf3 {[%emt 0:00:30]} Nd8 {[%emt 0:05:01]} 32. Nxf5 {[%emt 0:10:30]} gxf5 {[%emt 0:00:30]} 33. Rh1 {[%emt 0:00:00]} Rxh1 {[%emt 0:01:43]} 34. Bxh1 {[%emt 0:00:00]} Ng3 {[%emt 0:00:08]} 35. Bf3 {[%emt 0:00:30]} Nf1+ {[%emt 0:00:34]} 36. Ke2 {[%emt 0:00:30]} Nh2 {[%emt 0:00:35]} 37. Bh5 {[%emt 0:00:00]} Nf7 {[%emt 0:04:37]} 38. Bxf7 {[%emt 0:03:00]} Kxf7 {[%emt 0:00:30]} 39. Ne3 {[%emt 0:00:00]} Ke6 {[%emt 0:03:54]} 40. Kf2 {[%emt 0:00:00]} Ng4+ {[%emt 0:00:00]} 41. Nxg4 {[%emt 0:03:30]} fxg4 {[%emt 0:01:37]} 42. Kg3 {[%emt 0:00:30]} a5 {[%emt 0:02:30]} 43. b5 {[%emt 0:00:30]} 1-0

[Event "Turkish Super League 2019"]
[Site "Konya"]
[Date "2019.07.25"]
[Round "9"]
[White "Eren, Ataberk"]
[Black "Tanriverdi, Enes"]
[Result "1-0"]
[ECO "B85"]
[WhiteElo "2295"]
[BlackElo "2374"]
[Annotator "NA"]
[PlyCount "87"]
[EventDate "2019.07.17"]
[EventType "team-tourn"]
[EventCountry "TUR"]
[SourceTitle "playchess.com"]
[Source "ChessBase"]
[SourceQuality "1"]
[TimeControl "40/5400+30:1800+30"]

1. e4 c5 2. Nf3 e6 3. d4 cxd4 4. Nxd4 Nc6 5. Nc3 Qc7 6. Be2 a6 7. Be3 Nf6 8. O-O Be7 9. f4 d6 10. Kh1 O-O 11. Qe1 Nxd4 12. Bxd4 b5 13. Qg3 Bb7 14. a3 Rad8 15. Rae1 Bc6 16. Bd3 Qd7 17. Re3 e5 18. fxe5 Nh5 19. Qh3 Bg5 20. Qxh5 Bxe3 21. Bxe3 dxe5 22. Qxe5 f6 23. Qh5 Rde8 24. Bf4 {[%emt 0:26:00]} Qd4 {[%emt 0:32:00]} 25. e5 {[%emt 0:06:30]} f5 {[%emt 0:08:30]} 26. Bxf5 {[%emt 0:17:30]} g6 {[%emt 0:00:30]} 27. Bxg6 {[%emt 0:00:00]} Re7 {[%emt 0:00:00]} 28. Qh6 {[%emt 0:05:00]} Bxg2+ {[%emt 0:05:00]} 29. Kxg2 {[%emt 0:00:30]} Rg7 {[%emt 0:00:30]} 30. Kh1 {[%emt 0:02:30]} hxg6 {[%emt 0:00:30]} 31. Qg5 {[%emt 0:04:30]} a5 {[%emt 0:05:30]} 32. e6 {[%emt 0:02:30]} Qc4 {[%emt 0:10:30]} 33. Qxb5 {[%emt 0:13:30]} Qxb5 {[%emt 0:00:30]} 34. Nxb5 {[%emt 0:00:30]} g5 {[%emt 0:00:30]} 35. Kg2 {[%emt 0:01:30]} gxf4+ {[%emt 0:01:30]} 36. Kf3 {[%emt 0:01:30]} Rh7 {[%emt 0:06:30]} 37. Rg1+ {[%emt 0:02:30]} Kh8 {[%emt 0:00:30]} 38. Nd6 {[%emt 0:02:30]} Rh3+ {[%emt 0:00:30]} 39. Kf2 {[%emt 0:08:14]} Re3 {[%emt 0:00:00]} 40. Nf7+ {[%emt 0:00:20]} Kh7 {[%emt 0:00:00]} 41. Rg4 {[%emt 0:01:56]} Rg8 {[%emt 0:02:30]} 42. Ng5+ {[%emt 0:03:30]} Kg6 {[%emt 0:01:30]} 43. Ne4+ {[%emt 0:02:30]} Kh7 {[%emt 0:00:30]} 44. Nf6+ {[%emt 0:00:30]} 1-0